bitfinex-derivatives/quotes_ETHF0:USTF0_20250320
["timestamp","ask_amount","ask_price","bid_price","bid_amount"]
[1742479473085,4.1716,1994.0,1993.9,1.00344]
[1742479473286,5.17504,1994.0,1993.9,1.00344]
[1742479473491,4.1716,1994.0,1993.9,1.00344]
[1742479473990,5.17499,1994.0,1993.9,1.00344]
[1742479474185,4.1716,1994.0,1993.9,1.00344]
[1742479474584,5.17499,1994.0,1993.9,1.00344]
[1742479474988,4.1716,1994.0,1993.9,1.00344]
[1742479475585,4.1716,1994.0,1993.8,5.25868496]
[1742479475789,1.00344,1993.9,1993.8,0.00501496]
[1742479476292,5.49094,1993.9,1993.8,0.00501496]
[1742479479184,4.4875,1993.9,1993.8,1.00850496]
[1742479479791,1.01087634,1994.1,1993.8,0.00501496]
[1742479480090,0.00752634,1994.1,1994.0,1.00339]
[1742479480287,0.00752634,1994.1,1994.0,4.94439]
[1742479480688,1.01085634,1994.1,1994.0,1.00339]
[1742479480890,5.57270634,1994.1,1994.0,1.00339]
[1742479481288,1.00339,1994.0,1993.9,5.38879]
[1742479481488,5.56519,1994.0,1993.9,5.38879]
[1742479482388,5.56519,1994.0,1993.9,4.3854]
[1742479482589,1.00344,1993.9,1993.8,0.00501496]
[1742479482797,5.27094,1993.9,1993.8,1.00850496]
[1742479482993,5.27094,1993.9,1993.8,0.00501496]
[1742479483191,8.47874,1993.9,1993.8,0.00501496]
[1742479483497,8.47874,1993.9,1993.8,4.96e-06]
[1742479483688,10.97874,1993.9,1993.8,4.96e-06]
[1742479485093,11.06507078,1993.9,1993.8,4.96e-06]
[1742479485495,1.00389,1993.0,1992.9,1.00392]
[1742479485907,1.00399,1992.8,1992.7,4.607]
[1742479486109,4.4625,1992.9,1992.7,4.607]
[1742479486313,1.00399,1992.8,1992.7,5.61102]
[1742479486505,1.00399,1992.8,1992.7,4.607]
[1742479486915,5.46649,1992.8,1992.7,4.607]
[1742479487109,0.00752634,1992.9,1992.7,4.607]
[1742479487310,0.00752634,1992.9,1992.8,1.00399]
[1742479487714,1.00399,1992.8,1992.7,4.607]
[1742479487912,1.00399,1992.8,1992.7,5.61104]
[1742479488114,1.00399,1992.8,1992.7,4.607]
[1742479488414,3.21532634,1992.9,1992.6,1.00408]
[1742479488613,1.00399,1992.8,1992.7,4.2778]
[1742479489412,5.60489,1992.8,1992.7,4.2778]
[1742479490016,1.00414,1992.5,1992.4,46.16508]
[1742479490205,4.21192,1992.6,1992.5,1.00414]
[1742479490408,4.21192,1992.6,1992.4,40.8]
[1742479490409,1.00408,1992.7,1992.6,1.00408]
[1742479490610,7.8087,1992.8,1991.8,3.2078]
[1742479490909,7.8087,1992.8,1991.4,0.08735696]
[1742479490910,3.2078,1992.7,1992.3,1.00421]
[1742479491116,3.2078,1992.7,1992.1,1.00434]
[1742479491117,1.00427,1992.3,1992.1,1.00434]
[1742479491416,1.00429,1992.2,1992.1,5.54494]
[1742479491817,1.00429,1992.2,1992.1,5.54492]
[1742479492205,1.00428,1992.3,1992.1,4.5406]
[1742479492409,1.00428,1992.3,1992.2,5.54339]
[1742479492605,3.2078,1992.3,1991.8,2.51124]
[1742479492807,4.21208,1992.3,1992.1,1.00431]
[1742479493013,3.2078,1992.3,1992.2,4.5391]
[1742479493315,4.21204,1992.3,1992.2,4.5391]
[1742479493721,1.00443,1992.0,1991.9,1.00444]
[1742479494012,1.00443,1992.0,1991.9,4.5391]
[1742479494321,1.00444,1991.9,1991.8,40.8]
[1742479494616,1.00444,1991.9,1991.8,45.3391]
[1742479494821,4.21224,1991.9,1991.8,4.5391]
[1742479496220,1.00444,1991.9,1991.8,4.5391]
[1742479496616,4.21224,1991.9,1991.8,4.5391]
[1742479497117,1.00442,1992.0,1991.9,1.00443]
[1742479497415,1.00444,1991.9,1991.8,4.5391]
[1742479497815,1.00444,1991.9,1991.8,5.54359]
[1742479498216,1.00444,1991.9,1991.8,4.5391]
[1742479498417,1.00444,1991.9,1991.8,5.54359]
[1742479498718,1.00444,1991.9,1991.8,4.5391]
[1742479499222,5.56264,1991.9,1991.8,5.54359]
[1742479499724,5.56264,1991.9,1991.8,4.5391]
[1742479500023,5.56264,1991.9,1991.8,5.54359]
[1742479500227,1.00449,1991.8,1991.7,40.8]
[1742479500423,1.00454,1991.7,1991.6,5.62248]
[1742479501518,4.21985634,1991.8,1991.7,1.00454]
[1742479501714,4.21985634,1991.8,1991.7,46.40614]
[1742479501914,4.21985634,1991.8,1991.7,45.4016]
[1742479502723,4.21985634,1991.8,1991.7,46.40614]
[1742479503125,4.21985634,1991.8,1991.7,45.4016]
[1742479503320,4.21985634,1991.8,1991.7,46.40614]
[1742479503522,4.21985634,1991.8,1991.7,45.4016]
[1742479503721,4.21985634,1991.8,1991.7,4.6016]
[1742479504422,8.74395634,1991.8,1991.7,4.6016]
[1742479504727,8.74395634,1991.8,1991.7,5.60614]
[1742479505029,8.74395634,1991.8,1991.7,4.6016]
[1742479506826,1.00464,1991.6,1991.5,1.00462]
[1742479507421,1.00464,1991.5,1991.4,47.3707]
[1742479507917,1.00484,1991.2,1991.1,1.0048]
[1742479508114,3.2078,1991.2,1990.1,6.19985505]
[1742479508319,3.2078,1990.7,1990.2,11.44261]
[1742479508529,9.61345,1990.7,1990.2,8.9294]
[1742479508728,1.00516,1990.5,1990.4,1.00516]
[1742479509427,1.0052,1990.4,1990.3,5.50135]
[1742479509622,1.0052,1990.4,1990.3,5.50133]
[1742479509922,5.5046,1990.4,1990.3,1.00523]
[1742479510127,4.4994,1990.4,1990.2,1.00527]
[1742479510327,4.4994,1990.4,1990.3,1.00525]
[1742479511023,5.5046,1990.4,1990.3,1.00525]
[1742479511331,1.00525,1990.3,1990.2,5.40057]
[1742479511528,4.3626,1990.3,1990.2,5.40057]
[1742479512030,1.00523,1990.4,1990.2,5.40057]
[1742479512031,8.66749,1990.5,1990.3,1.00521]
[1742479512230,13.03009,1990.5,1990.4,5.4005]
[1742479512830,13.03009,1990.5,1990.4,4.3953]
[1742479514026,13.03009,1990.5,1990.4,5.4005]
[1742479514221,13.03009,1990.5,1990.4,4.3953]
[1742479514425,1.00519,1990.5,1990.4,5.4005]
[1742479514629,4.64232634,1990.6,1990.5,1.00515]
[1742479514835,0.00752634,1990.6,1990.5,5.59535]
[1742479515536,0.00752634,1990.6,1990.5,46.39535]
[1742479516224,4.6348,1990.9,1990.8,1.005]
[1742479516431,5.63979,1990.9,1990.7,1.005]
[1742479516627,5.63979,1990.9,1990.8,1.005]
[1742479516827,4.6348,1990.9,1990.5,4.5902]
[1742479517030,3.2078,1990.8,1990.5,5.59533]
[1742479517232,4.2129,1990.6,1990.5,4.5902]
[1742479517528,4.2129,1990.6,1990.2,3.2078]
[1742479517529,7.0648,1990.6,1989.9,2.51364]
[1742479517733,3.2078,1990.4,1990.2,4.3832]
[1742479517936,5.43615,1990.3,1990.2,4.3832]
[1742479518136,4.4309,1990.3,1990.2,5.3885]
[1742479518924,3.2078,1990.4,1990.2,4.3832]
[1742479519133,1.00525,1990.3,1990.2,5.3885]
[1742479519430,5.24485,1990.3,1990.2,4.3832]
[1742479519833,1.00535,1990.1,1990.0,49.2878]
[1742479520027,6.75276,1990.3,1990.0,54.48926]
[1742479520028,4.2396,1990.3,1990.0,54.48926]
[1742479520231,1.00532,1990.2,1990.0,13.68925]
[1742479520426,1.0053,1990.2,1990.1,1.00533]
[1742479520630,1.0053,1990.2,1990.0,12.6839]
[1742479520933,3.2078,1990.4,1990.0,1.00537]
[1742479520934,4.2396,1990.3,1990.0,1.00537]
[1742479521238,4.2396,1990.3,1990.0,4.1961]
[1742479521441,4.21304,1990.4,1990.3,1.00525]
[1742479521637,5.24479,1990.5,1990.4,1.0052]
[1742479521936,1.00522,1990.4,1990.3,1.00525]
[1742479522129,1.00525,1990.3,1990.2,1.00527]
[1742479522438,1.00524,1990.4,1990.3,1.00525]
[1742479522632,1.00527,1990.3,1990.2,1.00528]
[1742479522833,1.0053,1990.2,1990.1,1.00533]
[1742479523138,8.05904,1990.4,1990.2,1.0053]
[1742479523336,4.4061,1990.3,1990.2,1.0053]
[1742479524036,4.4061,1990.3,1990.1,1.00533]
[1742479524231,4.4061,1990.3,1990.0,1.00538]
[1742479524438,1.00532,1990.2,1990.1,1.00535]
[1742479524732,3.2078,1990.4,1990.3,1.00525]
[1742479525437,3.21532634,1990.8,1990.3,5.72089]
[1742479525640,0.00752634,1990.8,1990.7,1.00505]
[1742479525840,0.00752634,1990.8,1990.7,4.84205]
[1742479526748,0.00752634,1990.8,1990.7,1.00505]
[1742479527629,1.01255634,1990.8,1990.6,1.00507]
[1742479527941,4.5857,1990.7,1990.6,1.00507]
[1742479528729,3.21532634,1990.8,1990.7,1.00505]
[1742479529035,4.22035634,1990.8,1990.5,4.3064]
[1742479529331,4.30282634,1990.8,1990.7,1.00505]
[1742479529741,1.0051,1990.6,1990.5,4.3064]
[1742479530336,4.2129,1990.6,1990.5,4.3064]
[1742479530730,1.00525,1990.3,1990.2,46.436]
[1742479531238,1.00535,1990.1,1990.0,4.6415]
[1742479531438,3.2078,1990.1,1990.0,5.6469]
[1742479532141,4.3191,1990.2,1990.1,1.00535]
[1742479532440,7.5269,1990.2,1990.0,5.64688]
[1742479532643,1.00535,1990.1,1990.0,4.6415]
[1742479532844,5.32445,1990.1,1990.0,4.6415]
[1742479533443,5.32445,1990.1,1989.8,9.0354]
[1742479533444,1.00545,1990.0,1989.9,1.00545]
[1742479533644,8.53235,1990.0,1989.9,4.2271]
[1742479533847,1.00545,1989.9,1989.8,1.00546]
[1742479534145,5.32455,1989.9,1989.8,1.00546]
[1742479534443,4.3191,1989.9,1989.8,1.00546]
[1742479534649,5.32455,1989.9,1989.8,1.00546]
[1742479535137,5.32455,1989.9,1989.8,5.62606]
[1742479536040,1.00555,1989.7,1989.6,3.812]
[1742479536244,1.00564,1989.6,1989.2,52.15922]
[1742479536443,3.2078,1989.8,1989.5,4.6206]
[1742479536643,4.21333,1989.8,1989.7,1.00555]
[1742479536843,1.00557,1989.7,1989.6,1.00557]
[1742479537037,0.00752634,1989.8,1989.7,1.00555]
[1742479537243,1.01302634,1989.8,1989.7,1.00555]
[1742479537439,1.01302634,1989.8,1989.5,4.6206]
[1742479537644,1.0056,1989.6,1989.5,5.62621]
[1742479537839,5.72184,1989.6,1989.0,5.72256]
[1742479538043,1.00579,1989.3,1989.2,1.00578]
[1742479538342,1.00574,1989.4,1989.3,1.00572]
[1742479538545,1.0057,1989.5,1989.4,1.00569]
[1742479538844,4.21344,1989.6,1989.5,1.00565]
[1742479539245,1.00567,1989.5,1989.4,1.00566]
[1742479539543,2.51389,1989.7,1989.0,3.2078]
[1742479539747,7.06932634,1989.8,1989.0,3.2078]
[1742479539748,1.00565,1989.6,1989.2,2.51452]
[1742479540046,1.00561,1989.6,1989.5,1.00562]
[1742479540244,1.00566,1989.5,1989.4,1.00566]
[1742479540442,1.00566,1989.5,1989.4,5.58286]
[1742479540647,0.00752634,1989.8,1989.4,10.29925]
[1742479540843,0.00752634,1989.8,1989.7,1.00555]
[1742479541546,0.00752634,1989.8,1989.7,4.87355]
[1742479541743,4.21309,1990.3,1990.2,1.0053]
[1742479541942,1.00532,1990.2,1990.1,1.00531]
[1742479542347,1.00534,1990.2,1990.1,1.00533]
[1742479543248,3.21532634,1990.3,1990.2,1.0053]
[1742479543438,0.00752634,1990.3,1990.2,1.0053]
[1742479545049,0.00752634,1990.3,1990.2,4.2131]
[1742479545236,0.00752634,1990.3,1990.2,6.7131]
[1742479545642,0.00752634,1990.3,1990.2,15.7479]
[1742479547046,7.4726,1990.9,1990.8,1.005]
[1742479547247,3.2078,1991.0,1990.9,1.00495]
[1742479547548,3.2078,1991.0,1990.9,1.00492]
[1742479548056,5.46718,1991.1,1990.6,11.01075]
[1742479548057,4.4623,1991.1,1991.0,1.0049]
[1742479548252,4.2126,1991.2,1991.0,1.00486]
[1742479548552,3.21532634,1991.2,1991.1,5.66085]
[1742479548742,0.00752634,1991.2,1991.1,5.66085]
[1742479552155,0.00752634,1991.2,1991.1,8.16085]
[1742479554060,4.4286,1991.9,1991.3,2.51182]
[1742479554355,4.4968,1991.8,1991.4,11.2735]
[1742479554560,4.4968,1991.8,1991.7,1.00454]
[1742479555261,4.4968,1991.8,1991.7,4.82154]
[1742479555759,4.4968,1991.8,1991.7,9.07324]
[1742479556152,4.4968,1991.8,1991.7,4.82154]
[1742479556656,4.43612634,1991.9,1991.8,1.00449]
[1742479556857,8.71902634,1991.9,1991.8,1.00449]
[1742479557254,8.71902634,1991.9,1991.7,8.1958]
[1742479557559,8.71902634,1991.9,1991.8,1.00449]
[1742479558263,0.00752634,1991.9,1991.8,1.00449]
[1742479561565,0.00752634,1991.9,1991.8,4.21229]
[1742479561858,0.00752634,1991.9,1991.8,6.71229]
[1742479562365,0.00752634,1991.9,1991.8,3.50449]
[1742479562756,0.00752634,1991.9,1991.8,1.00449]
[1742479562951,0.00752634,1991.9,1991.8,4.21229]
[1742479563158,0.00752634,1991.9,1991.8,6.71229]
[1742479563657,0.00752634,1991.9,1991.8,4.21229]
[1742479563859,0.00752634,1991.9,1991.8,1.00449]
[1742479564055,0.00752634,1991.9,1991.8,4.78949]
[1742479564758,4.63272634,1991.9,1991.8,4.78949]
[1742479566865,0.00752634,1991.9,1991.8,4.78949]
[1742479567471,0.00752634,1991.9,1991.7,1.00452]
[1742479567665,0.00752634,1991.9,1991.8,1.00449]
[1742479568063,4.21232634,1991.9,1991.8,1.00449]
[1742479568267,0.00752634,1991.9,1991.8,5.59859]
[1742479568771,0.00752634,1991.9,1991.8,9.97369]
[1742479568967,0.00752634,1991.9,1991.8,14.64379]
[1742479569268,6.34e-06,1991.9,1991.8,17.14379]
[1742479569669,4.21182,1992.8,1992.2,2.51064]
[1742479569875,3.2078,1992.8,1992.4,2.51048]
[1742479570175,4.2048,1992.7,1992.6,1.00409]
[1742479570374,4.2048,1992.7,1992.6,4.78009]
[1742479571267,0.00752634,1992.8,1992.7,1.00404]
[1742479571573,0.00752634,1992.8,1992.7,8.59134]
[1742479572378,0.00752634,1992.8,1992.7,5.38354]
[1742479573276,0.00752634,1992.8,1992.7,4.77704]
[1742479574174,0.00752634,1992.8,1992.4,2.51036]
[1742479574380,4.69422634,1992.8,1992.7,1.00404]
[1742479574579,5.69821634,1992.8,1992.7,1.00404]
[1742479574776,4.69422634,1992.8,1992.4,3.771]
[1742479575081,1.00409,1992.6,1992.5,1.00411]
[1742479575287,12.0197,1992.7,1992.2,46.404]
[1742479575478,5.69084,1992.5,1992.4,1.00415]
[1742479575679,4.6867,1992.5,1992.4,1.00415]
[1742479577074,5.69084,1992.5,1992.4,1.00419]
[1742479577476,4.6867,1992.5,1992.4,1.00419]
[1742479578279,0.00752634,1992.8,1992.5,2.51029]
[1742479578484,4.6434,1992.7,1992.6,4.76609]
[1742479578883,0.00752634,1992.8,1992.7,1.00404]
[1742479579086,0.00752634,1992.8,1992.7,8.52034]
[1742479579477,0.00752634,1992.8,1992.7,11.02034]
[1742479579880,6.34e-06,1992.8,1992.7,11.02034]
[1742479580075,4.4158,1993.4,1993.3,1.00374]
[1742479580284,4.4158,1993.4,1993.3,4.76474]
[1742479580285,9.0812,1993.4,1993.3,4.76474]
[1742479582083,9.0812,1993.4,1993.3,9.15854]
[1742479582489,4.6654,1993.4,1993.3,9.15854]
[1742479584377,4.6654,1993.4,1993.3,12.36634]
[1742479584781,0.00752634,1993.5,1993.4,1.00369]
[1742479586187,0.00752634,1993.5,1993.4,5.22849]
[1742479587186,0.00752634,1993.5,1993.4,14.48379]
[1742479587494,6.34e-06,1993.5,1993.4,16.98379]
[1742479588096,6.34e-06,1993.5,1993.4,57.78379]
[1742479589194,6.34e-06,1993.5,1993.4,54.37019]
[1742479589391,6.34e-06,1993.5,1993.4,13.57019]
[1742479589597,6.34e-06,1993.5,1993.4,5.22849]
[1742479589787,6.34e-06,1993.5,1993.4,8.96349]
[1742479590185,6.34e-06,1993.5,1993.4,4.73869]
[1742479590499,6.34e-06,1993.5,1993.4,9.41619]
[1742479590988,6.34e-06,1993.5,1993.4,4.74269]
[1742479591189,6.34e-06,1993.5,1993.4,9.42019]
[1742479596295,6.34e-06,1993.5,1993.4,11.92019]
[1742479597098,6.34e-06,1993.5,1993.4,52.72019]
[1742479597295,4.4267,1994.1,1993.8,1.00349]
[1742479597595,4.4267,1994.1,1994.0,4.21119]
[1742479597799,4.5808,1994.2,1994.1,1.00333]
[1742479598394,4.6039,1994.5,1994.4,1.00318]
[1742479598595,4.6039,1994.5,1994.4,4.71918]
[1742479599593,0.00501757,1994.6,1994.5,1.00313]
[1742479599794,4.49551757,1994.6,1994.5,5.31833]
[1742479599990,4.49551757,1994.6,1994.5,1.00313]
[1742479600199,4.49551757,1994.6,1994.5,3.718]
[1742479600402,4.49551757,1994.6,1994.5,4.72113]
[1742479602393,4.49551757,1994.6,1994.4,1.00315]
[1742479602602,4.49551757,1994.6,1994.5,1.00313]
[1742479602800,4.49551757,1994.6,1994.4,1.00315]
[1742479603005,4.49551757,1994.6,1994.3,3.71652634]
[1742479603302,4.49551757,1994.6,1994.5,1.00313]
[1742479604601,4.49551757,1994.6,1994.4,5.23047]
[1742479604796,4.49551757,1994.6,1994.3,4.71972634]
[1742479604998,4.49551757,1994.6,1994.4,1.00318]
[1742479605195,4.49551757,1994.6,1994.3,3.71652634]
[1742479605405,4.49551757,1994.6,1994.4,1.00315]
[1742479605708,5.49862757,1994.6,1994.3,3.71652634]
[1742479605917,4.49551757,1994.6,1994.4,1.00317]
[1742479606101,4.49551757,1994.6,1994.5,1.00313]
[1742479606402,4.49551757,1994.6,1994.3,0.00752634]
[1742479606699,3.2078,1994.5,1994.1,1.00332]
[1742479607000,3.2078,1994.3,1994.2,1.00328]
[1742479607194,9.2009,1994.4,1994.2,1.00325]
[1742479607399,4.6873,1994.3,1994.2,1.00325]
[1742479608605,4.6873,1994.3,1994.2,5.60395]
[1742479608795,4.6873,1994.3,1994.2,1.00325]
[1742479610001,0.00501757,1994.6,1994.2,5.71599]
[1742479610198,0.00501757,1994.6,1994.5,1.00313]
[1742479610400,0.00501757,1994.6,1994.5,51.95583]
[1742479612308,7.57e-06,1994.6,1994.5,51.95583]
[1742479612908,7.57e-06,1994.6,1994.5,92.75583]
[1742479614811,2.93214586,1995.0,1994.9,1.00293]
[1742479615002,9.1313,1995.4,1995.3,1.00273]
[1742479615199,9.1313,1995.4,1995.3,4.67173]
[1742479615200,13.492,1995.4,1995.3,4.67173]
[1742479615606,3.2078,1995.8,1995.3,3.669]
[1742479615813,4.3607,1995.7,1995.5,1.00261]
[1742479616015,9.1313,1995.6,1995.5,1.00261]
[1742479616312,9.1313,1995.6,1995.4,5.52887634]
[1742479616610,4.3607,1995.5,1995.4,1.01017634]
[1742479617799,4.3607,1995.5,1995.4,0.00752634]
[1742479618000,4.3607,1995.5,1995.4,1.01020634]
[1742479618412,4.3607,1995.5,1995.4,0.00752634]
[1742479619713,5.36333,1995.5,1995.4,0.00752634]
[1742479619903,4.3607,1995.5,1995.4,0.00752634]
[1742479621311,4.3607,1995.5,1995.4,1.01020634]
[1742479622011,4.3607,1995.5,1995.4,0.00752634]
[1742479622311,6.8607,1995.5,1994.4,2.50795]
[1742479622518,4.21066,1995.1,1994.4,10.34735]
[1742479622711,1.00296,1994.9,1994.5,3.656]
[1742479623011,4.6145,1994.8,1994.7,1.00303]
[1742479623315,3.2078,1995.4,1995.3,1.00273]
[1742479623719,3.2078,1995.4,1995.0,3.658]
[1742479623913,3.2078,1995.2,1994.8,3.661]
[1742479624114,1.00295,1994.9,1994.6,4.67256634]
[1742479624319,4.21072,1995.0,1994.7,1.00303]
[1742479624621,4.6145,1994.8,1994.6,9.12099634]
[1742479624819,5.6175,1994.8,1994.6,3.66952634]
[1742479625018,5.61752,1994.8,1994.6,3.66952634]
[1742479625223,1.00303,1994.7,1994.6,3.66952634]
[1742479625419,8.8801,1994.7,1994.6,3.66952634]
[1742479626217,13.09093,1994.7,1994.6,3.66952634]
[1742479627411,8.8801,1994.7,1994.6,3.66952634]
[1742479627909,9.88313,1994.7,1994.6,3.66952634]
[1742479628521,13.09093,1994.7,1994.6,3.66952634]
[1742479629514,9.88313,1994.7,1994.6,3.66952634]
[1742479629719,3.2078,1994.9,1994.6,0.00752634]
[1742479629921,1.00303,1994.8,1994.7,4.2422]
[1742479630121,5.23243,1994.8,1994.7,4.2422]
[1742479630321,5.23243,1994.8,1994.7,5.24523]
[1742479630518,4.2294,1994.8,1994.7,5.24523]
[1742479630719,8.9399,1995.1,1995.0,1.00288]
[1742479631017,9.36347,1995.5,1994.7,4.2422]
[1742479631018,5.23222,1995.2,1994.9,3.649]
[1742479631225,1.00282,1995.2,1995.0,5.24506]
[1742479631410,1.00282,1995.2,1995.1,1.00283]
[1742479631913,1.00288,1995.0,1994.9,4.65192]
[1742479632221,1.00301,1994.8,1994.7,1.00301]
[1742479632423,1.00303,1994.7,1994.6,8.17382634]
[1742479632919,1.00303,1994.7,1994.0,2.50843]
[1742479632920,5.7078,1994.7,1993.8,3.2078]
[1742479633118,7.5163,1994.6,1994.1,4.5193]
[1742479633416,1.00335,1994.1,1994.0,1.00336]
[1742479633620,1.00333,1994.2,1994.1,1.00333]
[1742479634314,1.00333,1994.2,1994.0,1.01087634]
[1742479634520,2.50847,1994.0,1993.4,1.79323473]
[1742479634822,1.00364,1993.5,1993.4,1.79323473]
[1742479635219,1.00369,1993.4,1993.3,4.21151]
[1742479635522,2.50886,1993.7,1993.3,4.21151]
[1742479636122,1.00369,1993.4,1993.3,4.21151]
[1742479636319,1.00369,1993.4,1993.3,3.2078]
[1742479636518,1.00369,1993.4,1993.2,48.85112634]
[1742479636519,1.00372,1993.4,1993.2,40.80752634]
[1742479636719,1.00374,1993.3,1993.2,0.00752634]
[1742479637624,1.00393,1993.0,1992.8,44.481]
[1742479637817,1.00385,1993.1,1993.0,1.00388]
[1742479638227,1.00381,1993.2,1992.8,6.19096]
[1742479638521,1.00391,1993.0,1992.9,1.00392]
[1742479638826,0.00752634,1993.2,1992.8,45.49248634]
[1742479639024,3.2078,1992.9,1992.0,3.2078]
[1742479639214,4.21187,1992.7,1992.3,2.51058]
[1742479639419,1.00406,1992.7,1992.6,1.00408]
[1742479639615,4.4969,1992.8,1992.4,3.2078]
[1742479639822,4.4969,1992.8,1992.4,5.71825]
[1742479640017,4.4969,1992.8,1992.7,1.00404]
[1742479640321,4.4969,1992.8,1992.6,3.2078]
[1742479640322,0.00752634,1993.2,1993.0,1.00385]
[1742479640527,0.00752634,1993.2,1993.0,3.712]
[1742479640719,0.00752634,1993.2,1993.1,1.00384]
[1742479641024,1.01133634,1993.2,1993.1,1.00384]
[1742479641224,1.00384,1993.1,1993.0,4.71585]
[1742479641421,1.01135634,1993.2,1993.1,1.00384]
[1742479642020,1.01135634,1993.2,1993.0,3.712]
[1742479642021,1.00384,1993.1,1993.0,4.71585]
[1742479642425,1.00384,1993.1,1993.0,3.712]
[1742479642625,1.00384,1993.1,1992.8,3.715]
[1742479642626,1.00396,1992.9,1992.8,3.715]
[1742479642824,7.00133,1993.0,1992.4,3.21281757]
[1742479643025,4.4916,1992.8,1992.5,4.7231]
[1742479643226,1.00414,1992.5,1992.4,4.21698757]
[1742479643436,1.00411,1992.6,1992.5,1.00412]
[1742479643832,4.4916,1992.6,1992.4,3.21281757]
[1742479644026,4.4916,1992.6,1992.5,1.00414]
[1742479644423,3.2078,1993.0,1992.4,46.52323757]
[1742479644624,2.51705634,1993.2,1992.7,5.71788]
[1742479644625,3.21532634,1993.2,1992.7,5.71788]
[1742479644829,8.58984634,1993.2,1993.0,1.00388]
[1742479645029,5.38204634,1993.2,1993.1,1.00384]
[1742479645334,4.37822634,1993.2,1993.1,1.00384]
[1742479646029,4.21153,1993.4,1993.1,1.00384]
[1742479646030,1.00355,1993.7,1993.3,2.50924]
[1742479646230,5.37426,1993.7,1993.3,2.50924]
[1742479646422,1.00359,1993.6,1993.5,1.00359]
[1742479646620,5.37429,1993.6,1993.5,1.00359]
[1742479646827,4.3707,1993.6,1993.5,1.00359]
[1742479647527,5.37429,1993.6,1993.5,1.00359]
[1742479647729,1.00364,1993.5,1993.4,1.01117634]
[1742479647930,1.00362,1993.6,1993.5,1.00364]
[1742479648330,4.29732634,1993.7,1993.6,1.00359]
[1742479648629,0.00752634,1993.7,1993.6,1.00359]
[1742479649429,1.01106634,1993.7,1993.6,1.00359]
[1742479649628,0.00752634,1993.7,1993.6,1.00359]
[1742479650530,1.01106634,1993.7,1993.6,1.00359]
[1742479650725,1.00361,1993.6,1993.5,1.00359]
[1742479651234,1.00364,1993.5,1993.4,1.01117634]
[1742479651531,1.0036,1993.6,1993.5,1.00359]
[1742479651733,1.0036,1993.6,1993.4,0.00752634]
[1742479651734,0.00752634,1993.7,1993.6,1.00359]
[1742479651924,0.00752634,1993.7,1993.6,4.70359]
[1742479653835,0.00752634,1993.7,1993.6,9.34469]
[1742479654429,7.4546,1994.5,1993.8,2.50864]
[1742479654733,7.4546,1994.5,1994.4,1.00318]
[1742479654734,4.2468,1994.5,1994.4,1.00318]
[1742479654931,5.24993,1994.5,1994.4,1.00318]
[1742479655132,1.00318,1994.4,1994.3,5.46051]
[1742479655334,5.24997,1994.5,1994.3,5.46051]
[1742479655634,1.00318,1994.4,1994.0,2.50847]
[1742479655834,1.00318,1994.4,1994.3,1.00323]
[1742479656227,7.46212634,1994.5,1994.1,8.1423]
[1742479656525,7.46212634,1994.5,1994.3,1.00322]
[1742479656526,1.0032,1994.4,1994.3,1.00322]
[1742479657335,8.46528634,1994.5,1994.4,1.00318]
[1742479657535,1.00319,1994.4,1994.3,1.0032]
[1742479658036,8.46526634,1994.5,1994.4,1.00318]
[1742479658223,0.00752634,1994.5,1994.4,1.00318]
[1742479658429,0.00752634,1994.5,1994.4,4.67818]
[1742479659223,0.00752634,1994.5,1994.4,7.88598]
[1742479659424,0.00752634,1994.5,1994.4,4.67818]
[1742479659633,0.00752634,1994.5,1994.4,7.88598]
[1742479660026,6.34e-06,1994.5,1994.4,7.88598]
[1742479660834,6.34e-06,1994.5,1994.4,48.68598]
[1742479661337,6.34e-06,1994.5,1994.4,51.18598]
[1742479662335,6.34e-06,1994.5,1994.4,51.57100548]
[1742479662638,4.4303,1995.2,1995.1,1.00283]
[1742479662829,4.21035,1995.7,1995.5,1.0026]
[1742479663036,4.3864,1995.6,1995.5,1.0026]
[1742479663938,0.00752634,1995.7,1995.6,1.00258]
[1742479664134,4.39392634,1995.7,1995.6,1.00258]
[1742479664331,5.39646634,1995.7,1995.6,1.00258]
[1742479664527,4.39392634,1995.7,1995.6,1.00258]
[1742479667438,4.39392634,1995.7,1995.6,5.36188]
[1742479669439,4.39392634,1995.7,1995.6,1.00258]
[1742479669942,7.60172634,1995.7,1995.6,1.00258]
[1742479670138,7.60172634,1995.7,1995.4,0.00752634]
[1742479670338,4.4648,1995.6,1995.5,1.00263]
[1742479670542,4.2933,1995.6,1995.5,5.60953]
[1742479670734,4.2933,1995.6,1995.5,1.00263]
[1742479671735,4.2933,1995.6,1995.5,5.50253]
[1742479671935,0.00752634,1995.7,1995.6,1.00258]
[1742479672143,0.00752634,1995.7,1995.6,4.64858]
[1742479674238,0.00752634,1995.7,1995.6,9.21458]
[1742479675844,0.00752634,1995.7,1995.6,12.42238]
[1742479676547,0.00752634,1995.7,1995.6,4.64858]
[1742479676741,0.00752634,1995.7,1995.6,4.63058]
[1742479678242,1.00258,1995.6,1995.5,46.33]
[1742479678444,1.00258,1995.6,1995.5,47.33263]
[1742479678649,7.46632634,1995.7,1995.5,46.33]
[1742479678852,4.251,1995.6,1995.5,47.33262]
[1742479679153,3.21532634,1995.7,1995.6,1.00258]
[1742479679339,4.21785634,1995.7,1995.6,1.00258]
[1742479679546,4.21790634,1995.7,1995.6,1.00258]
[1742479679752,0.00752634,1995.7,1995.6,1.00258]
[1742479680354,4.21787634,1995.7,1995.6,1.00258]
[1742479680656,4.21785634,1995.7,1995.6,1.00258]
[1742479680955,1.01005634,1995.7,1995.6,1.00258]
[1742479681149,1.00258,1995.6,1995.5,1.00259]
[1742479681350,4.6744,1995.6,1995.4,1.01016634]
[1742479681545,1.00263,1995.5,1995.4,1.01016634]